Cogmind - Beta 10.1 *** ADVENTURER MODE // 2020.10.06 @ 06:28:16 Player: Gules Result: Destroyed by H-55 Commando with Assault Rifle Performance ------------- Evolutions (2) 1000 Regions Visited (5) 1000 Robots Destroyed (25) 125 Value Destroyed (558) 558 Prototype IDs (1) 20 Alien Tech Used (0) 0 Bonus (300) 300 TOTAL SCORE: 3003 Bonus ------- Aligned with FarCom 300 Cogmind --------- Core Integrity 0/550 Matter 290/300 Energy 50/100 System Corruption 0% Temperature Cool (0) Movement Core (50) Location -8/Materials Parts ------- > --- POWER (2) -------- (None) > --- PROPULSION (4) --- (None) > --- UTILITY (2) ------ Advanced Sensor Array Improved Signal Interpreter > --- WEAPON (3) ------- Welding Torch > --- INVENTORY (4) ---- Heat Sink Peak State ------------ > --- POWER ------------ Light Ion Engine > --- PROPULSION ------- Flight Unit VTOL Module Cesium-ion Thruster > --- UTILITY ---------- Improved Signal Interpreter Trap Reconfigurator > --- WEAPON ----------- Heavy Particle Cannon Rocket Launcher > --- INVENTORY -------- Heat Sink [Rating: 23] Favorites ----------- Power Light Ion Engine Engine Light Ion Engine Propulsion Cesium-ion Thruster Leg Aluminum Leg Hover Unit Hover Unit Flight Unit Cesium-ion Thruster Utility Improved Signal Interpreter Device Trap Reconfigurator Storage Medium Matter Pod Processor Improved Signal Interpreter Protection Light Armor Plating Weapon Rocket Launcher Energy Gun Small Laser Energy Cannon Heavy Particle Cannon Ballistic Gun Light Assault Rifle Launcher Rocket Launcher Special Weapon Welding Torch Impact Weapon Heavy Hammer Build | -11 -10 -10 -10 -9 -8 ------- Run | Scr Mat Min Exi Min Mat Slots Evolved 4 | . . . . . 4 Power 1 | . . . . . 1 Propulsion 2 | . . . . . 2 Utility . | . . . . . . Weapon 1 | . . . . . 1 Parts Attached 28 | 7 3 4 4 2 8 Power 4 | 2 1 . . . 1 Engine 4 | 2 1 . . . 1 Core . | . . . . . . Reactor . | . . . . . . Propulsion 10 | 2 1 3 2 1 1 Treads . | . . . . . . Leg 2 | 2 . . . . . Wheel . | . . . . . . Hover 1 | . 1 . . . . Flight 7 | . . 3 2 1 1 Utility 7 | 1 1 . 2 1 2 Device 4 | 1 . . 2 . 1 Storage 1 | . 1 . . . . Processor 1 | . . . . 1 . Hackware . | . . . . . . Protection 1 | . . . . . 1 Artifact . | . . . . . . Weapon 7 | 2 . 1 . . 4 Energy Gun 1 | 1 . . . . . Energy Cannon 1 | . . . . . 1 Ballistic Gun 2 | 1 . . . . 1 Ballistic Cannon . | . . . . . . Launcher 1 | . . 1 . . . Special Weapon 1 | . . . . . 1 Impact Weapon 1 | . . . . . 1 Slashing Weapon . | . . . . . . Piercing Weapon . | . . . . . . Special Melee Weapon . | . . . . . . Unidentified Prototypes 1 | . . . 1 . . Parts Lost 12 | . . 1 . . 11 Power 2 | . . . . . 2 Propulsion 3 | . . . . . 3 Utility 2 | . . . . . 2 Weapon 5 | . . 1 . . 4 Highest Loss Streak 6 | . . 1 . . 6 Average Slot Usage (%) 64 | . 88 56 62 85 38 Engine 12 | . 14 14 14 14 4 Leg 4 | . 20 . . . . Hover 2 | . 4 4 . . . Flight 14 | . . 13 27 28 9 Device 6 | . 10 . 6 15 6 Storage 2 | . 9 . . . . Processor 2 | . . . . 12 9 Energy Gun 4 | . 14 4 . . . Ballistic Gun 5 | . 14 9 . . . Launcher 7 | . . 9 14 14 3 Naked Turns . | . . . . . . Heaviest Build 14 | 8 10 8 9 9 14 Greatest Support 20 | 20 20 10 10 11 15 Greatest Overweight (x) 2 | . 1 1 2 1 2 Average Overweight (x) . | . . . . . . Largest Inventory Capacity 4 | 4 4 4 4 4 4 Average Capacity 4 | 4 4 4 4 4 4 Most Carried 4 | 4 4 4 4 4 3 Average Carried 2 | 2 3 3 2 1 1 Final Capacity 4 | 4 4 4 4 4 4 Final Carried 4 | 3 4 3 . 2 1 Class Distribution -------------------- 100% | Mutant Dominant Class ---------------- Mutant | -10/Materials Mutant | -10/Mines Mutant | -10/Exiles Mutant | -9/Mines Mutant | -8/Materials Resources | -11 -10 -10 -10 -9 -8 ----------- Run | Scr Mat Min Exi Min Mat Matter Collected 638 | 274 51 53 . 45 215 Remotely . | . . . . . . Salvage Created 591 | 74 117 91 . 79 230 Parts 39 | 4 8 5 . 9 13 Haulers Intercepted . | . . . . . . Recyclers Shooed 1 | . . . . 1 . Parts Field Recycled . | . . . . . . Retrieved Matter . | . . . . . . Parts Self-Destructed . | . . . . . . Prevented . | . . . . . . Kills | -11 -10 -10 -10 -9 -8 ------- Run | Scr Mat Min Exi Min Mat Combat Hostiles Destroyed 18 | 1 2 5 . 4 6 Melee 1 | . . . . . 1 Guns 4 | 1 2 1 . . . Cannons 2 | . . . . . 2 AOE 8 | . . 4 . 4 . Classes Destroyed 7 | 2 1 1 . 1 2 Worker 4 | 1 1 . . 2 . Builder 2 | . . . . 1 1 Watcher 1 | . 1 . . . . Swarmer 6 | . . 3 . . 3 Grunt 10 | 1 2 2 . 4 1 Duelist 1 | . . . . . 1 Sentry 1 | . . . . . 1 Best Kill Streak 7 | 2 3 3 . 7 4 Combat Bots Only 4 | 1 2 3 . 4 4 Max Kills in Single Turn 2 | 1 1 2 . 2 1 Gunslinging . | . . . . . . Exploded 2 | . . 2 . 1 . Melee 1 | . . . . . 1 Uniques/NPCs Destroyed . | . . . . . . Combat | -11 -10 -10 -10 -9 -8 -------- Run | Scr Mat Min Exi Min Mat Damage Taken 1356 | 25 103 62 . 74 1092 Core 608 | 8 19 7 . 18 556 Absorbed by Shields . | . . . . . . Core Remaining (%) 87 | 96 . . . 79 . Volleys Fired 61 | 4 19 9 . 12 17 Largest 2 | 2 2 2 . 1 2 Hottest 108 | 60 60 53 . 33 108 Shots Fired 84 | 8 35 11 . 12 18 Gun 58 | 8 35 8 . . 7 Cannon 9 | . . . . . 9 Launcher 16 | . . 3 . 12 1 Special 1 | . . . . . 1 Kinetic 38 | 4 19 8 . . 7 Thermal 30 | 4 16 . . . 10 Explosive 16 | . . 3 . 12 1 Electromagnetic . | . . . . . . Robot Hit Streak 12 | 7 12 2 . 3 11 Robot Miss Streak 5 | . 3 2 . . 5 Penetration Max . | . . . . . . Secondary Targets 1 | . 1 . . . . Max Gunslinging Chain 1 | . 1 . . . . Shots Hit Robots 55 | 7 24 3 . 3 18 Core Hits 38 | 3 8 7 . 13 7 Critical Hits . | . . . . . . Critical Kills . | . . . . . . Critical Parts Destroyed . | . . . . . . Melee Attacks 9 | . . . . . 9 Impact 9 | . . . . . 9 Slashing . | . . . . . . Piercing . | . . . . . . Sneak Attacks . | . . . . . . Combat Hostiles . | . . . . . . Follow-up Attacks . | . . . . . . Damage Inflicted 1339 | 66 200 257 . 467 349 Guns 334 | 66 197 21 . . 50 Cannons 125 | . . . . . 125 Explosions 703 | . . 236 . 467 . Melee 172 | . . . . . 172 Ramming 3 | . 3 . . . . Kinetic 170 | 24 75 21 . . 50 Thermal 291 | 42 122 . . . 127 Explosive 703 | . . 236 . 467 . Electromagnetic . | . . . . . . Impact 172 | . . . . . 172 Slashing . | . . . . . . Piercing . | . . . . . . Highest Corruption . | . . . . . . Average Corruption . | . . . . . . Corruption Purged . | . . . . . . Overload Shots . | . . . . . . Overflow Damage 48 | . . 9 . . 39 Projectiles . | . . . . . . Explosions 27 | . . 9 . . 18 Melee 21 | . . . . . 21 Knockbacks 1 | . . . . . 1 Impact 1 | . . . . . 1 Kinetic . | . . . . . . Secondary . | . . . . . . Self-Inflicted Damage 24 | . 1 . . 2 21 Shots 2 | . . . . 1 1 Rammed 6 | . 1 . . . 5 Targets Rammed 6 | . 1 . . . 5 Kicked . | . . . . . . Crushed . | . . . . . . Highest Temperature 174 | 52 69 14 . 26 174 Average Temperature 30 | 24 22 4 . 11 61 Received Heat Transfer 708 | 18 72 . . 51 567 Siege Activations . | . . . . . . Robots Corrupted . | . . . . . . Combat Hostiles . | . . . . . . Parts Fried 5 | . . . . . 5 Impact Corruptions 3 | . . . . . 3 Robots Melted . | . . . . . . Combat Hostiles . | . . . . . . Parts Melted . | . . . . . . Heat Transferred 585 | 100 275 . . . 210 Parts Sabotaged . | . . . . . . Parts Stolen . | . . . . . . Parts Stripped . | . . . . . . Power Chain Reactions . | . . . . . . Missiles Intercepted . | . . . . . . Alert | -11 -10 -10 -10 -9 -8 ------- Run | Scr Mat Min Exi Min Mat Peak Influence 169 | 25 95 141 . 115 169 Initial 37 | . 13 31 . . 37 Average 56 | 8 24 86 . 20 102 Maximum Alert Level . | . . . . . . Low Security (%) 100 | 100 100 100 . 100 100 Level 1 . | . . . . . . Level 2 . | . . . . . . Level 3 . | . . . . . . Level 4 . | . . . . . . Level 5 . | . . . . . . High Security . | . . . . . . Max Security . | . . . . . . Squads Dispatched 4 | . 2 1 . 1 . Investigation 3 | . 2 1 . . . Extermination . | . . . . . . Reinforcement 1 | . . . . 1 . Assault . | . . . . . . Garrison . | . . . . . . Intercept . | . . . . . . Construction Impeded 1 | . . . . 1 . Haulers Reinforced . | . . . . . . Stealth | -11 -10 -10 -10 -9 -8 --------- Run | Scr Mat Min Exi Min Mat Distress Signals 1 | . 1 . . . . Communications Jammed . | . . . . . . Distress Signals . | . . . . . . Times Spotted 44 | 1 16 5 . 4 18 Peak Tracking Total 8 | 1 7 3 . 3 8 Tactical Retreats 4 | . 1 . . . 3 Traps | -11 -10 -10 -10 -9 -8 ------- Run | Scr Mat Min Exi Min Mat Traps Triggered 1 | . 1 . . . . Indirectly . | . . . . . . Trap Hack Attempts . | . . . . . . Triggered . | . . . . . . Disarmed . | . . . . . . Reprogrammed . | . . . . . . Reused 1 | . . . . 1 . Traps Extracted . | . . . . . . Installed 2 | . . . . 2 . Triggered 1 | . . . . 1 . Machines | -11 -10 -10 -10 -9 -8 ---------- Run | Scr Mat Min Exi Min Mat Machines Disabled 1 | . . . . . 1 Max in Single Turn 1 | . . . . . 1 Machines Sabotaged . | . . . . . . Garrisons Compromised . | . . . . . . Overloaded Fab Kills . | . . . . . . Fab Network Shutdowns . | . . . . . . Hacking | -11 -10 -10 -10 -9 -8 --------- Run | Scr Mat Min Exi Min Mat Machines Accessed 7 | . 2 1 4 . . Terminals 2 | . 2 . . . . Fabricators . | . . . . . . Repair Stations . | . . . . . . Recycling Units . | . . . . . . Scanalyzers . | . . . . . . Garrison Access . | . . . . . . Total Hacks 56 | . 6 1 49 . . Successful 55 | . 5 1 49 . . Failed 1 | . 1 . . . . Catastrophic . | . . . . . . Database Lockouts . | . . . . . . Manual 2 | . . . 2 . . Terminals 6 | . 6 . . . . Fabricators . | . . . . . . Repair Stations . | . . . . . . Recycling Units . | . . . . . . Scanalyzers . | . . . . . . Garrison Access . | . . . . . . Terminal Hacks 55 | . 5 1 49 . . Record 52 | . 3 . 49 . . Open Door 1 | . . 1 . . . Dispatch Records 1 | . 1 . . . . Hauler Manifests 1 | . 1 . . . . Fabricator Hacks . | . . . . . . Repair Station Hacks . | . . . . . . Recycling Unit Hacks . | . . . . . . Scanalyzer . | . . . . . . Garrison Access Hacks . | . . . . . . Unauthorized Hacks . | . . . . . . Terminals . | . . . . . . Fabricators . | . . . . . . Repair Stations . | . . . . . . Recycling Units . | . . . . . . Scanalyzers . | . . . . . . Garrison Access . | . . . . . . Data Cores Recovered . | . . . . . . Used . | . . . . . . Hacking Detections 2 | . 2 . . . . Full Trace Events 1 | . 1 . . . . Feedback Events . | . . . . . . Feedback Blocked . | . . . . . . Robot Schematics Acquired . | . . . . . . Robots Built . | . . . . . . Matter . | . . . . . . Time . | . . . . . . Total Robot Build Rating . | . . . . . . Part Schematics Acquired . | . . . . . . Parts Built . | . . . . . . Matter . | . . . . . . Time . | . . . . . . Total Part Build Rating . | . . . . . . Parts Repaired . | . . . . . . Time . | . . . . . . Parts Recycled . | . . . . . . Recycled Matter . | . . . . . . Retrieved Matter . | . . . . . . Retrieved Components . | . . . . . . Parts Scanalyzed . | . . . . . . Part Schematics Acquired . | . . . . . . Parts Damaged . | . . . . . . Bothacking | -11 -10 -10 -10 -9 -8 ------------ Run | Scr Mat Min Exi Min Mat Used RIF Installer . | . . . . . . Robots Hacked . | . . . . . . Non-combat . | . . . . . . Combat . | . . . . . . Robot Hacks Applied . | . . . . . . Relay Couplers Released . | . . . . . . Robots Rewired . | . . . . . . Allies Hacked . | . . . . . . Hacks Repelled . | . . . . . . Allies | -11 -10 -10 -10 -9 -8 -------- Run | Scr Mat Min Exi Min Mat Total Allies . | . . . . . . Largest Group . | . . . . . . Highest-Rated Group . | . . . . . . Highest-Rated Ally . | . . . . . . Total Orders . | . . . . . . Ally Attacks . | . . . . . . Total Damage . | . . . . . . Kills . | . . . . . . Allies Corrupted . | . . . . . . Allies Melted . | . . . . . . Intel | -11 -10 -10 -10 -9 -8 ------- Run | Scr Mat Min Exi Min Mat Robot Analysis Total . | . . . . . . Derelict Logs Recovered 3 | . . 2 . 1 . Drone Launches . | . . . . . . Drone Recoveries . | . . . . . . Exploration | -11 -10 -10 -10 -9 -8 ------------- Run | Scr Mat Min Exi Min Mat Turns Passed 1465 | 145 282 349 310 151 228 Spaces Moved 2094 | 103 215 532 774 220 250 Core 159 | 24 . . 1 . 134 Treads . | . . . . . . Legs 207 | 79 128 . . . . Wheels . | . . . . . . Hover 265 | . 87 178 . . . Flight 1463 | . . 354 773 220 116 Fastest Speed 34 | 50 60 37 37 37 34 Average Speed 54 | 103 98 59 37 37 57 Slowest Speed 150 | 120 130 120 150 120 150 Overloaded Moves . | . . . . . . Propulsion Burnouts . | . . . . . . Robots Hopped . | . . . . . . Cave-ins Triggered . | . . . . . . Exploration Rate (%) 45 | 7 39 72 93 37 23 Regions Visited 5 Branch Regions 3 Pre-discovered Areas 1 | . . . 1 . . Known Exits Taken 1 | . . . . 1 . Unknown Exits Taken 4 | 1 1 1 1 . . Scrap Searched 2 | . . 1 . 1 . Spaces Dug . | . . . . . . Terrain Destroyed 120 | . . 33 . 74 13 Melee . | . . . . . . Projectile 4 | . . . . . 4 AOE 116 | . . 33 . 74 9 Terrain Rammed . | . . . . . . Walls Destroyed . | . . . . . . Machines Disabled . | . . . . . . Actions | -11 -10 -10 -10 -9 -8 --------- Run | Scr Mat Min Exi Min Mat Total 2315 | 133 256 556 796 277 297 Wait 66 | 11 8 3 8 35 1 Move 2089 | 102 214 531 773 219 250 Hop . | . . . . . . Pick Up 33 | 9 4 4 5 4 7 Fast Attach . | . . . . . . Attach 23 | 6 1 3 4 1 8 Detach 4 | . 2 1 . 1 . Swap 5 | 1 2 1 . 1 . Drop 17 | . 5 4 6 2 . Fire 61 | 4 19 9 . 12 17 Melee 9 | . . . . . 9 Ram 6 | . 1 . . . 5 Kick . | . . . . . . Crush . | . . . . . . Escape Stasis . | . . . . . . Rewire . | . . . . . . Trap 2 | . . . . 2 . Miscellaneous . | . . . . . . Route ------- -11/Scrapyard -10/Materials (discovered 2 exits: [*Mat] / *Min) -10/Mines (discovered 2 exits: [*Mat] / *Exi) -10/Exiles (discovered 2 exits: [*Min x2]) -9/Mines -8/Materials (discovered 1 exit: Fac) History --------- Turn | Location | Event 2 | -11/Scrapyard | Met Revision 17 80 | -11/Scrapyard | Discovered new exit (range 8) 146 | -11/Scrapyard | Entered Materials 274 | -10/Materials | Discovered new exit (range 16) 316 | -10/Materials | Build established: Mutant 381 | -10/Materials | Discovered new exit (range 10) 428 | -10/Materials | Entered Mines 492 | -10/Mines | Received a Rocket Launcher from a helpful Derelict 529 | -10/Mines | Discovered new exit (range 6) 534 | -10/Mines | Met a Derelict shopkeep closing up shop 540 | -10/Mines | Learned Materials stockpile data 693 | -10/Mines | Learned Materials stockpile data 775 | -10/Mines | Deemed a non-threat by the Exiles lab entrance 775 | -10/Mines | Discovered new exit (range 5) 777 | -10/Mines | Entered Exiles 785 | -10/Exiles | Discovered new exit (range 15) 798 | -10/Exiles | Met 8R-AWN 805 | -10/Exiles | Met EX-HEX 822 | -10/Exiles | Met EX-DEC 830 | -10/Exiles | Learned location of Zion (-7) 859 | -10/Exiles | Discovered new exit (range 14) 888 | -10/Exiles | Visited The Gauntlet 957 | -10/Exiles | Met EX-BIN 965 | -10/Exiles | Aligned with FarCom system 965 | -10/Exiles | Given EX-Vault access code 995 | -10/Exiles | Opened EX-Vault 1003 | -10/Exiles | Found Prototype Flight Unit 1015 | -10/Exiles | Found Prototype Device 1016 | -10/Exiles | Identified Trap Reconfigurator 1028 | -10/Exiles | Warned to stay clear of 0b10 Research branches 1087 | -10/Exiles | Left Exiles lab with Trap Reconfigurator 1087 | -10/Exiles | Entered Mines 1106 | -9/Mines | Found a hidden stash of uninstalled traps 1148 | -9/Mines | Learned 2 Materials zone layouts 1229 | -9/Mines | Discovered new exit (range 5) 1238 | -9/Mines | Identified exit to Materials 1238 | -9/Mines | Entered Materials 1238 | -8/Materials | Evolved 4 slots: Power x1, Propulsion x2, Weapon x1 1239 | -8/Materials | Identified exit to Factory 1353 | -8/Materials | Lost 6 parts (1p3n2w) 1370 | -8/Materials | Core integrity fell below 50% 1405 | -8/Materials | Core integrity fell below 20% 1460 | -8/Materials | Lost 5 parts (1p2u2w) 1466 | -8/Materials | Destroyed by H-55 Commando with Assault Rifle Last Messages --------------- R-06 Scavenger collects Terrain Scan Processor. Acquired Lgt. Assault Rifle. R-06 Scavenger collects Flight Unit. R-06 Scavenger collects Lgt. Ion Engine. R-06 Scavenger collects Flight Unit. Lgt. Assault Rifle destroyed. Acquired 12 matter. U-05 Engineer lays Concrete. R-06 Scavenger collects Flight Unit. U-05 Engineer lays Concrete. Acquired Adv. Sensor Array. Ion Engine destroyed. R-06 Scavenger collects Aluminum Leg. R-06 Scavenger inserts Flight Unit into recycling unit. Acquired 3 matter. R-06 Scavenger collects Lgt. Nuclear Core. R-06 Scavenger collects Aluminum Leg. Acquired 7 matter. Acquired Welding Torch. [Achievement: First Step to Greatness] Map ----- +----------------------------------------------------+ | ???????????# ## ## #T """ ###### #? | | ???????????# ## ## #" """ #????# %######? | | ???????????# ## ## # #???## %###???? | | ???????????# ## ## ##+########## #???? | | ???????????+ + ## =% % #???? | | ???????????# ## ! ## %% T #??# | | ???????????###/######## g% % #??## | | ?????????????# # w############## #???? | | ?????????????# # g # #????????####+#####?? | | ?????????????# # ####????????# #?? | | ?????????????# + ###?????????# ""#?? | | ?????????????# # #???????????# Y"#?? | | ?????????????# # #???????????# ""#?? | | ?????????????# # #???????????# #?? | | ?????????????# # #?#####?????# """ #?? | | ?????????????# # # #????# """ #?? | | ?????????????########## # #????# """ #?? | | ???????????????????#### + #????# #?? | | ??????????????????##!! # #????##########?? | | ??????????????????#! ## #????????# #????? | | ??????????????????#! a #?? #????????# #????? | | ??????????????????#! #????###????????######## | | ??????????????????#! #???????????????# ! [ | | ??????????????????##!! #????########???# | | ???????????????????#### u####### #???# ! | | ??????????????????????# @ uuu #???# """ | | ??????????????????????# ##### """ | | ??????????????????????# h # + """ | | ??????????????????????########### # ### | | ????????????????????????????????## #?# | | ?????????????????????????????????# #?######## | | ?????????????????????????????????# #????????? | | ?????????????????????????????????# #????????? | | ????????????????????????????w?? #????????? | | ????????????????????????????? #????????? | | ??????????????????????????? g #????????? | | ??????????????????????????#########+###+#????????? | | ????????????????????o????????????????????????????? | | ?????????????????????????????????????????????????? | | ?????????????????????????????????????????????????? | | ?????????????????????????????????????????????????? | | ?????????????????????????????????????????????????? | | ?????????????????????????????????????????????????? | | ?????????????????????????????????????????????????? | | ?????????????????????????????????????????????????? | | ?????????????????????????????????????????????????? | | ?????????????????????????????????????????????????? | | ?????????????????????????????????????????????????? | | ?????????????????????????????????????????????????? | | ?????????????????????????????????????????????????? | +----------------------------------------------------+ Best States ------------- Heat Dissipation 31 Energy Generation 10 Energy Capacity 250 Matter Stores 300 Matter Capacity 400 Sight Range 16 Robot Scan Range 16 Terrain Scan Density 10 Armor Coverage 150 Resistance: KI 20 Resistance: TH 20 Resistance: EX 20 Resistance: EM 20 Resistance: I 20 Resistance: S 20 Resistance: P 20 Evasion (%) 63 Offensive Hacking 10 Item Schematics ----------------- None Robot Schematics ------------------ None Fabricated ------------ Nothing Alien Tech Used ----------------- None Achievements -------------- Crack Shot First Step to Greatness Librarian One Hack Too Far Risk Taker Shopping List Storm Trooper Tourist Challenges ------------ None Game ------ Seed MiniCatalystStripper Manual? 0 Play Time 01:34:23 Cumulative 3.1 hours Start 2020.10.06 @ 02:11:55 End 2020.10.06 @ 06:28:16 Sessions 3 Manual Loads 0 Difficulty Adventurer Special Mode None Game No. 1 Rogue 0 Adventurer 1 Explorer 0 Win Type - Total 0 Types 0/0/0/0/0/0/0/0/0 Lore% 9 Gallery% 2 Achievement% 3 Wizard Run 0 Options --------- ASCII 0 Keyboard 0 Movement Mouse Keybinds 0 Fullscreen 2 Font 18/SmallcapsGlow Map View 76x50 Tactical HUD 0 Map Filters NONE Filters NONE Steam 1 RUN: cfd7992c-5ab6-40a9-9028-f073515a4429